bitfinex/quotes_ETHUSD_20241124
["timestamp","ask_amount","ask_price","bid_price","bid_amount"]
[1732487933423,2.98864,3346.0,3345.5,0.04466555]
[1732487933776,3.0,3345.9,3345.5,0.04466555]
[1732487934134,3.0,3345.9,3345.4,2.181826]
[1732487934967,3.0,3345.9,3345.5,1.19563]
[1732487935128,3.0,3345.9,3345.5,1.5333826]
[1732487935328,3.0,3345.9,3345.6,0.04462502]
[1732487945074,2.98846,3346.2,3345.6,0.04462502]
[1732487945254,4.88773957,3346.4,3345.6,1.24019502]
[1732487945580,0.27855031,3346.3,3345.8,1.1955]
[1732487945776,4.88773957,3346.4,3345.8,1.1955]
[1732487946084,4.88773957,3346.4,3345.9,0.04280453]
[1732487946548,3.27859531,3346.3,3345.9,0.04280453]
[1732487946747,3.0,3346.3,3345.9,0.04280453]
[1732487947271,5.98838,3346.3,3345.9,0.04280453]
[1732487947484,3.0,3346.3,3345.9,0.04280453]
[1732487948043,2.98855,3346.2,3345.9,0.04280453]
[1732487948259,2.98864,3346.0,3345.3,2.0059]
[1732487948470,2.98887,3345.8,3345.4,0.320162]
[1732487948667,0.7789,3346.1,3345.3,0.8102]
[1732487948835,0.7789,3345.1,3344.4,0.8319]
[1732487949048,0.7789,3345.1,3344.1,1.19613]
[1732487949049,2.98973,3344.8,3344.2,1.50609]
[1732487949244,2.98973,3344.8,3344.2,1.19609]
[1732487949461,2.9898,3344.7,3344.2,1.19609]
[1732487949660,2.9898,3344.7,3344.2,1.518508]
[1732487949963,2.99002,3344.5,3344.2,0.322418]
[1732487950167,2.99002,3344.5,3343.8,0.7992]
[1732487950398,2.99016,3344.3,3343.8,0.7992]
[1732487950555,2.99008,3344.4,3343.9,0.199547]
[1732487950889,2.99017,3344.3,3343.8,0.7992]
[1732487951048,3.88992242,3344.5,3343.9,0.199547]
[1732487951049,2.99009,3344.4,3343.9,0.199547]
[1732487951249,2.99009,3344.4,3343.8,1.99544]
[1732487952037,2.99009,3344.4,3343.8,0.7992]
[1732487952233,3.88989242,3344.5,3343.9,1.19619]
[1732487952477,2.98999,3344.5,3344.0,0.199539]
[1732487952659,2.99011,3344.4,3344.0,0.199539]
[1732487952983,2.99011,3344.4,3343.8,1.99543]
[1732487953541,2.99021,3344.3,3343.8,0.7992]
[1732487954369,2.99025,3344.2,3343.8,0.7992]
[1732487955170,2.99025,3344.2,3343.8,0.998751]
[1732487956101,0.7516,3344.7,3343.8,0.998751]
[1732487956295,2.9904,3344.1,3343.8,0.7992]
[1732487956457,2.99043,3344.0,3343.8,0.7992]
[1732487956661,2.99023,3344.3,3343.8,0.7992]
[1732487957281,2.99023,3344.3,3343.9,0.199545]
[1732487959165,2.99027,3344.2,3343.9,0.199545]
[1732487959357,2.99027,3344.2,3343.8,0.7992]
[1732487959562,2.99027,3344.2,3344.0,0.03790167]
[1732487959775,2.99027,3344.2,3343.8,0.7992]
[1732487960062,2.99023,3344.3,3343.8,0.7992]
[1732487960396,2.99025,3344.2,3343.8,0.7992]
[1732487960701,2.99025,3344.2,3343.9,0.03790167]
[1732487962284,2.99035,3344.1,3343.9,0.03790167]
[1732487962664,2.9901,3344.4,3343.9,0.03790167]
[1732487963468,2.98989,3344.6,3343.9,0.03790167]
[1732487963683,2.99042,3344.1,3343.9,0.03790167]
[1732487964103,2.99043,3344.0,3343.8,0.7992]
[1732487964481,2.99064,3343.8,3343.2,0.8248]
[1732487964807,2.99064,3343.8,3343.3,0.20511844]
[1732487965015,2.99064,3343.8,3343.2,2.02124]
[1732487965016,2.99098,3343.4,3343.2,0.8248]
[1732487965183,0.7504,3343.6,3342.5,0.7555]
[1732487965521,2.99134,3343.0,3342.5,0.7555]
[1732487965670,2.99145,3342.9,3342.5,0.7555]
[1732487966106,2.99151,3342.8,3342.5,0.7555]
[1732487966811,2.99168,3342.6,3342.1,0.7555]
[1732487966972,2.99184,3342.5,3342.1,0.7555]
[1732487968076,2.99185,3342.5,3342.1,0.7555]
[1732487968586,2.99187,3342.4,3342.1,0.7555]
[1732487968774,2.99174,3342.6,3342.1,0.7555]
[1732487969109,2.99178,3342.5,3342.1,0.7555]
[1732487972691,2.99178,3342.5,3342.2,0.0368317]
[1732487974984,0.90092514,3342.6,3342.2,0.0368317]
[1732487975386,2.99192,3342.4,3341.8,2.05084914]
[1732487975575,2.99192,3342.4,3342.3,0.0377239]
[1732487975802,2.99192,3342.4,3341.8,2.37563905]
[1732487975996,3.89266514,3342.6,3341.8,1.17868905]
[1732487976201,3.89266514,3342.6,3341.9,1.2346139]
[1732487976375,0.90092514,3342.6,3342.1,1.19684]
[1732487976579,3.89261514,3342.6,3342.0,1.19688]
[1732487976822,0.7504,3343.0,3342.3,1.95676]
[1732487977123,3.89204514,3343.3,3342.7,1.19663]
[1732487977495,0.90092514,3343.3,3342.8,1.99433898]
[1732487978350,2.9907,3343.7,3342.8,0.79776898]
[1732487978715,2.9907,3343.7,3343.1,1.19646]
[1732487979146,2.99053,3343.9,3343.2,0.03734081]
[1732487979311,2.99053,3343.9,3343.3,0.76]
[1732487979511,0.7909,3344.0,3343.3,0.76]
[1732487979741,5.99061,3343.8,3343.4,0.03734081]
[1732487980144,3.78133,3344.0,3343.4,1.23371081]
[1732487980316,2.99043,3344.0,3343.4,1.19637]
[1732487980938,4.89220502,3344.2,3343.5,1.19631]
[1732487981151,0.7909,3344.3,3343.8,1.19623]
[1732487981323,5.68275502,3344.6,3344.0,0.76]
[1732487981930,2.98998,3344.5,3344.0,0.76]
[1732487982245,2.98998,3344.5,3344.1,0.03734081]
[1732487982451,2.69283502,3344.6,3344.1,0.03734081]
[1732487982611,2.98965,3344.9,3344.1,0.03734081]
[1732487982612,0.7982,3344.9,3344.1,0.03734081]
[1732487982817,0.32395885,3345.4,3344.1,0.03734081]
[1732487982818,2.98942,3345.2,3344.4,1.19599]
[1732487983058,2.98921,3345.4,3344.5,2.05438769]
[1732487983260,2.98921,3345.4,3344.8,1.19588]
[1732487983413,2.98883,3345.8,3345.2,0.8285]
[1732487983617,2.98856,3346.1,3345.2,2.02422]
[1732487983618,2.98873,3345.9,3345.2,2.02422]
[1732487983941,2.98873,3345.9,3345.3,0.03611085]
[1732487984155,2.98865,3346.0,3345.3,0.03611085]
[1732487984315,3.0,3345.9,3345.3,0.03611085]
[1732487984515,3.0,3345.9,3345.2,0.8285]
[1732487984516,3.0,3345.7,3345.2,0.8285]
[1732487984765,3.0,3345.7,3345.4,0.03611085]
[1732487985058,5.98874,3345.9,3345.2,0.8285]
[1732487985249,5.98874,3345.9,3345.5,0.03611085]
[1732487985561,5.98874,3345.9,3345.2,0.8285]
[1732487985764,5.98874,3345.9,3345.6,0.03611085]
[1732487986058,3.0,3345.6,3345.2,0.8285]
[1732487986221,2.98902,3345.6,3345.2,0.8285]
[1732487986421,2.98902,3345.6,3345.3,0.03611085]
[1732487986623,2.98902,3345.6,3345.2,0.8285]
[1732487987057,2.98902,3345.6,3345.3,0.03611085]
[1732487987243,2.98917,3345.4,3345.3,0.03611085]
[1732487988025,2.98917,3345.4,3344.9,0.8116]
[1732487988428,2.98917,3345.4,3345.0,0.03570117]
[1732487988740,2.98902,3345.6,3345.0,0.03570117]
[1732487988939,3.0,3345.8,3345.0,0.03570117]
[1732487989141,2.98906,3345.6,3344.9,0.8116]
[1732487990170,2.98906,3345.6,3344.9,2.00744]
[1732487990374,2.98909,3345.5,3344.9,0.8116]
[1732487990584,2.98909,3345.5,3345.0,0.03571918]
[1732487998209,2.98891,3345.7,3345.0,1.23151918]
[1732487998413,3.0,3345.6,3345.0,1.23151918]
[1732487998620,5.98902,3345.6,3345.0,0.03571918]
[1732487998768,3.0,3345.6,3345.0,1.23151918]
[1732487999114,3.0,3345.6,3345.1,1.19575]
[1732487999313,3.0,3345.8,3345.2,0.8267]
[1732487999468,2.98874,3345.9,3345.3,1.19568]
[1732487999667,2.98874,3345.9,3345.4,0.03530051]
[1732488000171,2.98857,3346.1,3345.4,0.03530051]
[1732488000374,5.67159502,3346.4,3345.5,1.19562]
[1732488000674,2.98852,3346.2,3345.6,2.02229]
[1732488000814,4.89029502,3346.4,3345.6,0.8267]
[1732488001143,2.98882,3345.8,3345.7,0.03530051]
[1732488001314,2.98911,3345.5,3345.1,0.7852]
[1732488001513,2.98934,3345.3,3345.1,0.7852]
[1732488001721,2.98934,3345.3,3345.2,0.03401131]
[1732488002454,2.98934,3345.3,3345.1,0.7852]
[1732488002845,2.98934,3345.3,3345.2,0.03401131]
[1732488003178,2.98934,3345.3,3345.1,0.7852]
[1732488003179,2.98923,3345.4,3345.1,0.7852]
[1732488003543,2.98923,3345.4,3345.2,0.03401131]
[1732488003741,2.98926,3345.3,3345.1,0.7852]
[1732488004888,2.98924,3345.4,3344.7,2.02861]
[1732488005049,2.98928,3345.3,3344.8,0.322456]
[1732488005253,2.98928,3345.3,3344.9,0.03397531]
[1732488006796,2.98927,3345.3,3344.9,0.03397531]
[1732488007379,2.98927,3345.3,3344.7,0.8327]
[1732488007534,2.98927,3345.3,3345.0,0.03397531]
[1732488007741,2.98927,3345.3,3344.8,0.202862]
[1732488007973,2.98927,3345.3,3345.1,0.03397531]
[1732488008191,2.98927,3345.3,3344.8,0.202862]
[1732488008381,2.98927,3345.3,3345.2,0.03397531]
[1732488008911,2.98927,3345.3,3344.8,0.202862]
[1732488009058,2.98927,3345.3,3345.2,0.03397531]
[1732488009258,2.98927,3345.3,3344.8,0.202862]
[1732488009600,2.98927,3345.3,3344.9,0.03397531]
[1732488009895,2.98919,3345.4,3344.9,0.03397531]
[1732488010103,2.98919,3345.4,3344.9,0.38011204]
[1732488010476,2.98927,3345.3,3344.9,0.38011204]
[1732488010998,2.98919,3345.4,3344.9,0.38011204]
[1732488012005,2.98917,3345.5,3344.9,0.38011204]
[1732488012190,2.98919,3345.4,3344.9,0.38011204]
[1732488013277,2.98893,3345.7,3344.9,0.03397531]
[1732488013606,2.98945,3345.1,3344.7,0.8327]
[1732488013966,2.98945,3345.1,3344.8,0.03397531]
[1732488014160,2.98945,3345.1,3344.7,0.8327]
[1732488014361,2.98945,3345.1,3344.9,0.03400232]
[1732488014614,2.98945,3345.1,3344.7,0.8327]
[1732488014811,2.98945,3345.1,3345.0,0.03400232]
[1732488015279,2.98945,3345.1,3344.7,0.8327]
[1732488015613,2.98945,3345.1,3344.8,0.03399782]
[1732488016011,2.98945,3345.1,3344.7,0.8327]
[1732488016553,2.98932,3345.3,3344.8,0.03399782]
[1732488016709,2.98932,3345.3,3344.7,0.8327]
[1732488016912,2.98932,3345.3,3344.9,0.03399782]
[1732488017142,2.98932,3345.3,3344.7,0.8327]
[1732488017349,2.98932,3345.3,3345.0,0.03399782]
[1732488017512,2.98932,3345.3,3344.7,1.13295014]
[1732488017706,2.98932,3345.3,3345.1,0.03399782]
[1732488017912,2.98932,3345.3,3344.7,1.13295014]
[1732488018228,2.98925,3345.4,3345.2,0.03399782]
[1732488018411,2.98925,3345.4,3344.8,0.23289001]
[1732488018616,2.98925,3345.4,3345.3,0.03399782]
[1732488019144,2.98925,3345.4,3344.8,1.42877001]
[1732488019312,2.98925,3345.4,3345.3,0.03399782]
[1732488019521,2.98925,3345.4,3344.8,1.42877001]
[1732488019718,2.98925,3345.4,3345.3,0.03399782]
[1732488020017,2.98925,3345.4,3344.8,1.42877001]
[1732488020332,2.98933,3345.3,3344.8,0.23289001]
[1732488020531,2.98933,3345.3,3344.9,0.03399782]
[1732488023628,2.98933,3345.3,3344.9,0.3831416]
[1732488025638,2.98933,3345.3,3344.9,0.03399782]
[1732488025961,2.98951,3345.1,3344.7,0.8327]
[1732488026127,2.98951,3345.1,3345.0,0.03397532]
[1732488026324,2.98951,3345.1,3344.7,0.8327]
[1732488026524,2.98968,3344.9,3344.7,0.8327]
[1732488029565,2.98948,3345.1,3344.7,0.8327]
[1732488030136,2.98955,3345.0,3344.7,0.8327]
[1732488030871,2.98954,3345.0,3344.7,0.8327]
[1732488031186,2.98953,3345.0,3344.7,0.8327]
[1732488035088,3.76903,3345.0,3344.3,0.60264799]
[1732488035259,0.7795,3345.0,3344.3,0.60264799]
[1732488035590,2.98977,3344.8,3344.3,0.60264799]
[1732488035889,2.98977,3344.8,3344.4,0.06246687]
[1732488036385,2.98988,3344.7,3344.4,0.06246687]
[1732488037255,2.98977,3344.8,3344.4,0.06246687]
[1732488037576,2.98977,3344.8,3344.2,0.8249]
[1732488037577,5.97957,3344.8,3344.2,0.8249]
[1732488037778,2.98977,3344.8,3344.5,0.06246687]
[1732488037940,2.98977,3344.8,3344.2,0.8249]
[1732488038136,2.98977,3344.8,3344.6,0.06246687]
[1732488038367,2.98977,3344.8,3344.2,2.021]
[1732488038565,2.98977,3344.8,3344.7,0.06246687]
[1732488038768,2.98977,3344.8,3344.2,2.021]
[1732488038976,2.98977,3344.8,3344.7,0.06246687]
[1732488039181,2.98977,3344.8,3344.2,2.021]
[1732488039521,2.98977,3344.8,3344.7,0.06246687]
[1732488039790,2.98977,3344.8,3344.2,2.021]
[1732488039945,2.98977,3344.8,3344.7,0.06246687]
[1732488040146,2.98977,3344.8,3344.2,2.021]
[1732488040481,2.98977,3344.8,3344.7,0.06246687]
[1732488040698,2.98977,3344.8,3344.2,2.021]
[1732488040847,2.98977,3344.8,3344.7,0.06246687]
[1732488041047,2.98977,3344.8,3344.2,2.40277463]
[1732488041280,2.98977,3344.8,3344.7,0.06257924]
[1732488041480,2.98977,3344.8,3344.2,2.40277463]
[1732488041680,2.98977,3344.8,3344.7,0.06257924]
[1732488041887,2.98977,3344.8,3344.2,2.40277463]
[1732488042102,2.98977,3344.8,3344.7,0.06257924]
[1732488042701,2.98977,3344.8,3344.2,2.40277463]
[1732488042903,2.98977,3344.8,3344.7,0.06257924]
[1732488043503,2.98977,3344.8,3344.2,0.8249]
[1732488043687,2.98977,3344.8,3344.7,0.06257924]
[1732488043889,2.98993,3344.6,3344.2,0.8249]
[1732488044209,2.98977,3344.8,3344.3,0.06257924]
[1732488044365,2.98977,3344.8,3344.2,0.8249]
[1732488044562,2.98977,3344.8,3344.4,0.06258374]
[1732488044765,2.98977,3344.8,3344.2,2.021]
[1732488044978,2.98977,3344.8,3344.5,0.06258374]
[1732488045218,2.98977,3344.8,3344.3,1.19605]
[1732488045374,2.98977,3344.8,3344.6,0.06258374]
[1732488045582,2.98977,3344.8,3344.3,1.19605]
[1732488045844,2.98977,3344.8,3344.7,0.06258374]
[1732488046149,2.98977,3344.8,3344.7,0.0626916]
[1732488046301,2.98977,3344.8,3344.3,1.19605]
[1732488046502,2.98977,3344.8,3344.4,0.0626916]
[1732488046752,2.98977,3344.8,3344.1,2.39223]
[1732488046946,2.98977,3344.8,3344.5,0.0626916]
[1732488047147,2.98977,3344.8,3344.1,1.1961]
[1732488047313,2.98977,3344.8,3344.6,0.0626916]
[1732488047516,2.98977,3344.8,3344.1,1.1961]
[1732488047818,2.98981,3344.7,3344.2,0.0626916]
[1732488049816,2.98981,3344.7,3344.2,1.2587816]
[1732488050208,2.98969,3344.9,3344.2,1.2587816]
[1732488050555,2.98971,3344.8,3344.2,1.2587816]
[1732488050702,2.98997,3344.6,3344.2,0.0626916]
[1732488050904,2.99001,3344.5,3344.0,1.40195632]
[1732488051115,2.99001,3344.5,3344.1,0.0626916]
[1732488052705,2.99001,3344.5,3344.0,1.40195632]
[1732488052903,2.99001,3344.5,3344.1,0.06272756]
[1732488053146,2.99001,3344.5,3344.0,1.40195632]
[1732488053386,3.75142,3344.7,3344.2,0.06272756]
[1732488053585,0.7616,3344.7,3344.0,0.60055632]
[1732488053759,2.99003,3344.5,3344.3,0.06272756]
[1732488053963,2.99003,3344.5,3344.0,0.60055632]
[1732488054163,2.99003,3344.5,3344.4,0.06275903]
[1732488054343,0.7616,3344.7,3344.0,0.60055632]
[1732488054550,3.0,3344.7,3344.4,0.06277701]
[1732488054789,3.0,3344.7,3344.2,2.02827]
[1732488054945,3.0,3344.7,3344.5,0.06277701]
[1732488055150,3.80005,3344.6,3344.0,0.60055632]
[1732488055891,2.99013,3344.4,3344.0,0.60055632]
[1732488056388,3.80005,3344.6,3344.0,0.60055632]
[1732488056594,2.99,3344.5,3344.0,0.60055632]
[1732488061985,2.99011,3344.4,3344.0,0.60055632]
[1732488063756,2.99011,3344.4,3343.9,0.795]
[1732488064187,3.80005,3344.6,3343.9,1.9912]
[1732488064367,2.99011,3344.4,3343.9,0.795]
[1732488065400,2.98995,3344.6,3344.0,1.25903141]
[1732488065587,3.8285,3344.8,3344.0,1.25903141]
[1732488065800,3.26921805,3344.7,3344.1,1.19612]
[1732488065954,2.9898,3344.7,3344.1,1.19612]
[1732488066369,0.7729,3345.8,3344.8,1.19587]
[1732488066574,2.98908,3345.6,3344.5,0.8228]
[1732488066799,0.72639069,3345.5,3345.0,0.8228]
[1732488067006,0.27938103,3345.4,3345.0,0.8228]
[1732488067207,0.27938103,3345.3,3345.1,0.06292536]
[1732488067507,2.98908,3345.6,3345.1,0.06292536]
[1732488067659,0.27930055,3345.5,3345.1,0.06292536]
[1732488068004,2.98891,3345.7,3345.0,2.01861]
[1732488068163,3.26829909,3345.6,3345.2,0.06292536]
[1732488068382,0.27928909,3345.5,3345.0,2.01861]
[1732488068583,2.98901,3345.6,3345.3,0.06292536]
[1732488068784,2.98901,3345.6,3345.0,2.01861]
[1732488068985,0.27919697,3345.5,3345.4,0.06292536]
[1732488069318,2.98901,3345.6,3345.0,2.01861]
[1732488069527,2.98908,3345.5,3345.4,0.06292536]
[1732488069691,2.98908,3345.5,3345.0,0.8228]
[1732488070218,2.98901,3345.6,3345.1,0.06292536]
[1732488072137,2.98909,3345.5,3345.1,0.06292536]
[1732488072332,3.0,3345.7,3345.1,0.06292536]
[1732488072551,3.0,3345.7,3345.1,1.4668289]
[1732488072720,2.98884,3345.8,3345.1,1.4668289]
[1732488073555,2.98891,3345.7,3345.1,1.4668289]
[1732488074088,2.98884,3345.8,3345.1,1.4668289]
[1732488074089,2.98884,3345.8,3345.1,0.2710789]
[1732488074374,2.98897,3345.7,3345.1,0.20815354]
[1732488074570,2.98897,3345.7,3345.2,0.06261971]
[1732488074876,2.98884,3345.8,3345.2,0.06261971]
[1732488074877,2.989,3345.6,3345.2,0.06261971]
[1732488075229,3.7917,3346.1,3345.2,0.06261971]
[1732488075230,3.0,3345.9,3345.4,1.19567]
[1732488075627,3.0,3345.9,3345.5,0.06257927]
[1732488076548,2.9887,3346.0,3345.5,0.06257927]
[1732488076863,0.7917,3346.1,3345.5,1.25820927]
[1732488077046,0.27865937,3346.0,3345.6,1.19556]
[1732488077237,3.0,3346.1,3345.6,1.19556]
[1732488077432,3.0,3346.1,3345.7,0.06204443]
[1732488077661,3.0,3346.1,3345.7,1.19556]
[1732488077870,3.89931689,3346.3,3345.8,0.06204443]
[1732488078082,0.27859887,3346.2,3345.8,0.06204443]
[1732488078583,2.98811,3346.6,3345.9,1.25751646]
[1732488078736,0.27850625,3346.5,3346.0,0.24530665]
[1732488078933,0.27850625,3346.5,3346.1,0.06194559]
[1732488079183,2.98772,3347.1,3346.5,0.7989]
[1732488079391,0.72368343,3347.0,3346.5,0.7989]
[1732488079549,2.98772,3347.1,3346.6,0.06194559]
[1732488079946,0.8319,3347.2,3346.6,0.06194559]
[1732488080142,0.8319,3347.2,3346.7,1.19519]
[1732488080343,2.98754,3347.3,3346.8,0.06174794]
[1732488080545,3.81921,3347.5,3346.8,1.19516]
[1732488080787,3.81921,3347.5,3346.7,1.1952]
[1732488080973,3.81921,3347.5,3346.9,0.0616177]
[1732488081172,3.81921,3347.5,3346.7,1.1952]
[1732488081395,3.81921,3347.5,3346.9,1.19513]
[1732488081567,3.0,3347.4,3346.9,1.19513]
[1732488081749,2.98722,3347.6,3347.0,0.7827]
[1732488082086,2.98722,3347.6,3347.0,2.0394077]
[1732488082392,2.98713,3347.7,3347.1,1.19505]
[1732488082750,2.98719,3347.7,3347.2,0.0616177]
[1732488082991,2.98717,3347.7,3347.0,0.7827]
[1732488083288,2.98731,3347.5,3347.3,0.0616177]
[1732488083451,2.98731,3347.5,3347.0,0.7827]
[1732488083647,2.98731,3347.5,3347.4,0.0616177]
[1732488083851,2.98717,3347.7,3347.0,0.7827]
[1732488084052,2.98727,3347.6,3347.0,0.7827]
[1732488084250,5.98687,3348.0,3347.1,0.06142014]
[1732488084562,2.98712,3347.8,3347.0,1.97777]
[1732488084880,2.98718,3347.7,3347.2,0.06141565]
[1732488085061,2.98705,3347.8,3347.1,1.19506]
[1732488085265,2.98705,3347.8,3347.3,0.06141565]
[1732488085595,2.98705,3347.8,3347.4,0.06137076]
[1732488085796,2.98705,3347.8,3347.2,1.19502]
[1732488085943,2.98705,3347.8,3347.5,0.06137076]
[1732488086146,2.98687,3348.0,3347.2,1.19502]
[1732488086348,2.98701,3347.9,3347.3,0.06137076]
[1732488086593,2.98705,3347.8,3347.3,0.06137076]
[1732488086894,2.98705,3347.8,3347.2,1.19502]
[1732488087048,2.98705,3347.8,3347.4,0.06137076]
[1732488087248,2.98705,3347.8,3347.2,1.19502]
[1732488087447,2.98705,3347.8,3347.5,0.06137076]
[1732488087675,2.98705,3347.8,3347.2,1.19502]
[1732488088187,2.98705,3347.8,3347.3,0.06137076]
[1732488088404,2.98705,3347.8,3347.0,2.57519041]
[1732488088688,0.89931689,3348.2,3346.8,1.19516]
[1732488088689,2.9873,3347.5,3347.4,0.06137076]
[1732488088896,0.8086,3347.4,3346.2,1.19538]
[1732488089061,2.98821,3346.5,3346.0,0.61112004]
[1732488089264,2.98821,3346.5,3346.3,0.06056242]
[1732488089265,3.79688,3346.4,3346.3,0.06056242]
[1732488089465,2.9887,3346.0,3345.5,0.7926]
[1732488089810,2.9887,3346.0,3345.6,0.06058038]
[1732488090795,2.98847,3346.2,3345.6,0.06058038]
[1732488091093,2.98857,3346.1,3345.6,0.06058038]
[1732488091978,2.9888,3345.9,3345.6,0.06058038]
[1732488092747,2.9888,3345.9,3345.5,0.7926]
[1732488093497,2.98891,3345.7,3345.5,0.7926]
[1732488093697,2.989,3345.6,3345.5,0.7926]
[1732488093849,2.98935,3345.2,3344.6,1.19594]
[1732488094214,2.98935,3345.2,3344.7,0.7926]
[1732488094215,2.98946,3345.1,3344.7,0.7926]
[1732488094507,2.98953,3345.0,3344.7,0.7926]
[1732488094852,2.98935,3345.2,3344.7,0.7926]
[1732488095496,2.98935,3345.2,3344.8,0.05993355]
[1732488095849,2.98918,3345.4,3344.7,0.7926]
[1732488096072,2.98918,3345.4,3344.9,0.05993355]
[1732488096273,2.98914,3345.5,3344.7,1.98851]
[1732488096492,3.0,3345.5,3345.0,0.05993355]
[1732488096664,3.0,3345.5,3344.7,2.30696]
[1732488096866,2.98926,3345.4,3345.1,0.05993355]
[1732488097054,2.98926,3345.4,3344.7,2.30696]
[1732488097258,2.98926,3345.4,3345.2,0.05993355]
[1732488097460,2.98926,3345.4,3344.7,1.98851]
[1732488097982,2.98926,3345.4,3344.8,0.05993355]
[1732488098347,3.0,3345.5,3344.9,1.19584]
[1732488098623,3.0,3345.5,3345.0,0.7926]
[1732488098851,2.989,3345.6,3345.0,2.04833355]
[1732488099069,2.98882,3345.8,3345.2,0.7926]
[1732488099366,2.9882,3346.5,3345.8,0.7926]
[1732488099664,2.98803,3346.7,3346.1,1.19541]
[1732488099835,2.98786,3346.9,3346.2,0.7926]
[1732488100363,2.98768,3347.1,3346.4,1.19531]
[1732488100525,2.98776,3347.0,3346.5,0.05974061]
[1732488100720,2.98766,3347.1,3346.5,0.05974061]
[1732488100948,0.8086,3347.4,3346.6,1.98783]
[1732488101156,1.89891984,3347.9,3346.6,1.98783]
[1732488101157,2.98721,3347.6,3346.6,1.98783]
[1732488101358,2.98737,3347.5,3346.9,1.19513]
[1732488101555,2.98716,3347.7,3347.0,0.7926]
[1732488101723,2.98716,3347.7,3347.0,2.2063483]
[1732488101938,2.98716,3347.7,3347.1,1.25455287]
[1732488102872,2.9871,3347.8,3347.1,1.25455287]
[1732488103040,2.98734,3347.5,3347.0,0.7926]
[1732488103247,2.98719,3347.7,3347.2,0.05950287]
[1732488103447,2.98719,3347.7,3347.0,1.98769]
[1732488103943,2.98703,3347.8,3347.1,1.19503]
[1732488104248,2.98703,3347.8,3347.2,1.25452287]
[1732488106251,2.98691,3348.0,3347.3,1.19497]
[1732488106650,2.98694,3347.9,3347.0,1.98769]
[1732488106850,2.98694,3347.9,3347.4,0.05844908]
[1732488107062,2.98694,3347.9,3347.2,1.19502]
[1732488107269,2.98694,3347.9,3347.5,0.05840425]
[1732488107451,2.98694,3347.9,3347.6,0.8078]
[1732488107778,2.98694,3347.9,3347.6,0.86620425]
[1732488108136,2.98712,3347.7,3347.6,0.05840425]
[1732488108653,2.98712,3347.7,3347.6,0.0583684]
[1732488108869,2.98712,3347.7,3347.3,0.7723]
[1732488109065,2.98712,3347.7,3347.6,0.0583684]
[1732488109263,2.98712,3347.7,3347.3,0.7723]
[1732488109670,2.98712,3347.7,3347.4,0.0583684]
[1732488111692,3.0,3348.1,3347.4,0.0583684]
[1732488111907,2.987,3347.9,3347.4,0.0583684]
[1732488112193,2.987,3347.9,3347.3,0.7723]
[1732488112492,0.7716,3348.7,3347.5,0.0584177]
[1732488112797,0.7716,3348.7,3347.6,1.96766]
[1732488112798,2.98661,3348.3,3347.6,1.96766]
[1732488112994,2.98661,3348.3,3347.7,0.316261]
[1732488113199,2.98661,3348.3,3347.6,2.0260777]
[1732488113348,2.98661,3348.3,3347.6,1.96766]
[1732488113699,2.98661,3348.3,3347.8,0.0584177]
[1732488114014,2.98661,3348.3,3347.9,0.0584177]
[1732488114357,2.98661,3348.3,3347.6,1.96766]
[1732488114551,2.98661,3348.3,3348.0,0.0584177]
[1732488114852,0.7716,3348.7,3347.0,0.02986879]
[1732488114853,2.98703,3347.8,3347.3,0.7998]
[1732488115052,0.8268,3347.6,3347.0,1.19509]
[1732488115372,2.98794,3346.8,3346.2,0.8282]
[1732488115575,2.98794,3346.8,3346.2,1.150107]
[1732488115779,2.98794,3346.8,3346.2,2.345477]
[1732488116558,2.98802,3346.7,3346.2,1.150107]
[1732488116761,2.98814,3346.6,3346.2,0.8282]
[1732488117106,2.98837,3346.3,3346.2,0.8282]
[1732488117309,2.98837,3346.3,3345.8,0.8282]
[1732488117511,2.98837,3346.3,3345.4,1.22554383]
[1732488117512,2.9887,3346.0,3345.4,0.8282]
[1732488117811,2.98875,3345.9,3345.4,0.8282]
[1732488124674,2.98864,3346.0,3345.4,2.02386]
[1732488125528,2.98839,3346.3,3345.5,1.25428875]
[1732488125674,2.98804,3346.7,3345.5,0.26105475]
[1732488125872,5.97575,3346.9,3346.1,1.96879]
[1732488126116,2.98786,3346.9,3346.1,1.96879]
[1732488126285,2.98786,3346.9,3346.2,1.19537]
[1732488126472,2.98766,3347.1,3346.4,1.19531]
[1732488126868,2.98766,3347.1,3346.5,0.05898716]
[1732488127314,2.98749,3347.3,3346.7,0.7734]
[1732488127613,2.98728,3347.6,3346.8,0.05922027]
[1732488127614,2.98742,3347.4,3346.8,0.05922027]
[1732488127799,2.98742,3347.4,3346.8,1.25438027]
[1732488128110,2.98728,3347.6,3346.8,1.25438027]
[1732488128111,2.98728,3347.6,3346.8,0.05922027]
[1732488128422,2.98728,3347.6,3347.0,1.19509]
[1732488128994,2.98705,3347.8,3347.1,0.05909919]
[1732488129188,2.98713,3347.7,3347.1,0.05909919]
[1732488129994,2.98723,3347.6,3347.1,0.05909919]
[1732488130520,2.98696,3347.9,3347.2,0.05909919]
[1732488130725,2.98713,3347.7,3347.2,0.05909919]
[1732488131220,2.98748,3347.3,3347.2,0.05909919]
[1732488131430,2.98748,3347.3,3346.7,1.9686]
[1732488131593,2.98731,3347.5,3346.7,0.7734]
[1732488131914,2.98748,3347.3,3346.7,0.7734]
[1732488132121,2.98748,3347.3,3346.8,0.05891985]
[1732488132333,2.98739,3347.4,3346.8,0.05891985]
[1732488132533,2.98755,3347.3,3346.8,0.05891985]
[1732488134433,2.98737,3347.5,3346.8,0.05891985]
[1732488134434,2.98737,3347.5,3346.8,0.26167884]
[1732488134738,2.98737,3347.5,3346.8,1.25407985]
[1732488136441,2.98741,3347.4,3346.8,1.25407985]
[1732488136953,2.9875,3347.3,3346.8,0.05891985]
[1732488137752,5.97473,3347.5,3346.8,0.05891985]